Cogmind - Beta 14 @@@ ROGUE MODE // 2024.08.08 @ 02:20:37 Player: celerysam Result: Destroyed by H-88 Terminator with KE Penetrator Performance ------------- Evolutions (8) 4000 Regions Visited (16) 3200 Robots Destroyed (50) 250 Value Destroyed (2399) 2399 Prototype IDs (37) 740 Alien Tech Used (6) 1200 Bonus (3738) 3738 TOTAL SCORE: 15527 Bonus ------- High Alert Combat Kills 22 Follower Combat Kills 7 Entered DSFs 1000 Aligned with FarCom 300 Scanned by Researcher 500 Met Sigix 2000 Friendly Fire -91 Cogmind --------- Core Integrity 0/1450 Matter 123/300 Energy 70/100 System Corruption 7% Temperature Cool (0) Movement Hovering (55) Location -2/Quarantine Parts ------- > --- POWER (2) -------- (None) > --- PROPULSION (9) --- Improved Gyrokinetic Inverter Experimental Gyrokinetic Inverter Combat Linear Gravjet > --- UTILITY (8) ------ Advanced Coolant Injector > --- WEAPON (4) ------- Nova Cannon > --- INVENTORY (5) ---- Improved Reaction Control System Improved Cloaking Device Sigix Containment Pod Sigix Corpse Peak State ------------ > --- POWER ------------ Light Quantum Reactor Light Quantum Reactor > --- PROPULSION ------- Gravmag Array Improved Gyrokinetic Inverter Improved Gyrokinetic Inverter Combat Antigrav System Combat Antigrav System Combat Antigrav System Combat Antigrav System Experimental Gyrokinetic Inverter > --- UTILITY ---------- Advanced Power Amplifier Advanced Power Amplifier Advanced Heat Sink Advanced Coolant Injector Small Storage Unit Advanced Transmission Jammer Improved Remote Shield System Shield > --- WEAPON ----------- AWS/Autocannon Particle Cleaver > --- INVENTORY -------- Micro Antimatter Reactor Field Propulsion Array Q-thruster Improved Q-thruster Transdimensional Reconstructor Micro-nuke Launcher Sigix Corpse [Rating: 174] Favorites ----------- Power Light Angular Momentum Engine Engine Light Angular Momentum Engine Power Core Neutrino Core Reactor Light Antimatter Reactor Propulsion Improved Gyrokinetic Inverter Treads Light Treads Leg Aluminum Leg Wheel Compact Wheel Hover Unit Improved Gyrokinetic Inverter Flight Unit Xenon Bombardment Thruster Utility Small Storage Unit Device Improved Heat Sink Storage Small Storage Unit Hackware System Shield Weapon Medium Laser Energy Gun Medium Laser Energy Cannon Heavy Particle Cannon Ballistic Gun Heavy Assault Rifle Ballistic Cannon AWS/Autocannon Launcher Grenade Launcher Special Weapon Plasma Flamer Impact Weapon Great Maul Slashing Weapon Phasing Sabre Special Melee Weapon Improved Datajack Build | -11 -10 -10 -10 -9 -8 -7 -7 -6 -5 -5 -5 -4 -3 -3 -2 -2 ------- Run | Yrd Mat Min Exi Min Mat Fac DSF Fac Fac Upp Upp Fac Res DSF Res Qua Slots Evolved 16 | . . . . . 4 2 . 2 2 . . 2 2 . 2 . Power 1 | . . . . . 1 . . . . . . . . . . . Propulsion 7 | . . . . . 2 1 . 1 . . . 1 1 . 1 . Utility 6 | . . . . . 1 . . 1 1 . . 1 1 . 1 . Weapon 2 | . . . . . . 1 . . 1 . . . . . . . Parts Attached 137 | 6 2 4 4 . 14 . 14 18 1 3 10 18 10 1 9 23 Power 32 | 1 . 2 . . 3 . 1 7 . 2 2 4 1 . 3 6 Engine 15 | 1 . 2 . . 1 . 1 5 . 1 2 2 . . . . Core 6 | . . . . . 2 . . 2 . 1 . . . . . 1 Reactor 11 | . . . . . . . . . . . . 2 1 . 3 5 Propulsion 50 | 2 2 . 2 . 2 . 12 5 1 1 2 8 5 . 4 4 Treads 2 | . 2 . . . . . . . . . . . . . . . Leg 11 | . . . 2 . 2 . 4 2 . . 1 . . . . . Wheel 2 | 2 . . . . . . . . . . . . . . . . Hover 25 | . . . . . . . 2 1 1 1 1 8 5 . 3 3 Flight 10 | . . . . . . . 6 2 . . . . . . 1 1 Utility 27 | 1 . 1 2 . 3 . 1 2 . . 2 4 4 . 2 5 Device 21 | . . 1 2 . 2 . . . . . 2 4 4 . 2 4 Storage 4 | 1 . . . . 1 . . 1 . . . . . . . 1 Processor . | . . . . . . . . . . . . . . . . . Hackware 2 | . . . . . . . 1 1 . . . . . . . . Protection . | . . . . . . . . . . . . . . . . . Artifact . | . . . . . . . . . . . . . . . . . Weapon 28 | 2 . 1 . . 6 . . 4 . . 4 2 . 1 . 8 Energy Gun 12 | 2 . 1 . . 2 . . 2 . . 1 1 . . . 3 Energy Cannon 4 | . . . . . 1 . . . . . . . . . . 3 Ballistic Gun 1 | . . . . . 1 . . . . . . . . . . . Ballistic Cannon 3 | . . . . . 1 . . 1 . . . 1 . . . . Launcher 2 | . . . . . 1 . . . . . . . . . . 1 Special Weapon 1 | . . . . . . . . . . . 1 . . . . . Impact Weapon 1 | . . . . . . . . . . . 1 . . . . . Slashing Weapon 3 | . . . . . . . . . . . 1 . . 1 . 1 Piercing Weapon . | . . . . . . . . . . . . . . . . . Special Melee Weapon 1 | . . . . . . . . 1 . . . . . . . . Unidentified Prototypes 17 | . . . . . 1 . . 1 . 2 . . 1 1 3 8 Parts Lost 44 | . . . . . . . 4 4 1 . 3 4 . . . 28 Power 8 | . . . . . . . 2 . . . . 1 . . . 5 Propulsion 17 | . . . . . . . 1 4 1 . 1 2 . . . 8 Utility 9 | . . . . . . . . . . . 1 . . . . 8 Weapon 10 | . . . . . . . 1 . . . 1 1 . . . 7 Highest Loss Streak 8 | . . . . . . . 4 2 1 . 2 2 . . . 8 To Critical Strikes 2 | . . . . . . . . . . . . . . . . 2 Average Slot Usage (%) 82 | . 75 97 100 100 89 84 79 76 64 67 85 78 83 81 81 59 Engine 7 | . 14 14 14 14 9 7 6 7 11 7 6 3 . . . . Core 1 | . . . . . 5 7 6 . . 2 3 . . . . . Reactor 1 | . . . . . . . . . . . . 6 7 9 8 4 Treads 4 | . 6 28 8 . . . . . . . . . . . . . Leg 6 | . . . 19 28 30 30 22 1 . . 1 . . . . . Hover 12 | . . . . . . . 2 3 7 14 20 30 33 33 33 26 Flight 4 | . . . . . . . 4 28 14 11 5 . . . . 1 Device 11 | . . 12 14 14 13 15 12 6 5 5 9 13 21 23 21 13 Storage 8 | . 14 14 14 14 12 7 7 6 5 5 5 5 4 4 4 3 Hackware 5 | . . . . . . . 2 12 11 11 11 9 4 4 4 3 Energy Gun 10 | . 20 27 28 28 8 7 5 2 . . 4 . 4 . . 1 Ballistic Cannon 1 | . . . . . 2 7 7 2 . . . 4 4 4 4 1 Peak Build Rating 174 | 6 6 14 23 19 36 36 55 57 47 57 83 127 151 152 173 174 Average Rating 62 | 3 5 12 17 19 29 36 40 44 43 52 74 115 144 144 163 117 On Entrance 58 | . 6 5 13 19 19 36 36 36 41 47 57 75 127 150 152 173 Naked Turns . | . . . . . . . . . . . . . . . . . Heaviest Build 114 | 14 14 19 19 19 36 36 36 32 18 31 48 99 111 111 114 114 Greatest Support 122 | 26 40 40 40 25 45 45 95 34 30 39 50 80 108 108 122 122 Greatest Overweight (x) 3 | 3 . . . . . . 2 1 . . 1 1 1 1 . 2 Average Overweight (x) . | . . . . . . . . . . . . . . . . . Largest Inventory Capacity 8 | 8 8 8 8 8 8 8 8 8 8 8 8 8 8 8 8 8 Average Capacity 7 | 7 8 8 8 8 8 8 8 8 8 8 8 8 8 8 8 7 Most Carried 8 | 8 8 8 8 8 8 8 8 8 8 8 8 8 8 8 8 8 Average Carried 7 | 3 7 7 7 8 7 8 7 7 7 7 7 7 7 8 7 6 Final Capacity 8 | 8 8 8 8 8 8 8 8 8 8 8 8 8 8 8 8 5 Final Carried 8 | 6 8 7 8 8 8 8 7 8 8 7 7 8 8 8 8 5 Class Distribution -------------------- 58% | Mutant 12% | Gunner 7% | Derelict-Mutant 7% | Tank 6% | Scavenger-Mutant 6% | Sprinter Dominant Class ---------------- Mutant | -10/Materials Mutant | -10/Mines Mutant | -10/Exiles Mutant | -9/Mines Scavenger-Mutant | -8/Materials Scavenger-Mutant | -7/Factory Scavenger-Mutant | -7/DSF Sprinter | -6/Factory Mutant | -5/Factory Mutant | -5/Upper Caves Derelict-Mutant | -5/Upper Caves Gunner | -4/Factory Tank | -3/Research Tank | -3/DSF Tank | -2/Research Mutant | -2/Quarantine Resources | -11 -10 -10 -10 -9 -8 -7 -7 -6 -5 -5 -5 -4 -3 -3 -2 -2 ----------- Run | Yrd Mat Min Exi Min Mat Fac DSF Fac Fac Upp Upp Fac Res DSF Res Qua Matter Collected 1516 | 207 18 114 . . 170 . 6 132 . 36 238 132 58 213 31 161 Remotely . | . . . . . . . . . . . . . . . . . Salvage Created 1689 | . 30 146 . . 313 . . . . . 96 693 . 130 112 169 Parts 72 | . 1 7 . . 14 . . . . . 2 28 . . 10 10 Haulers Intercepted . | . . . . . . . . . . . . . . . . . Recyclers Shooed . | . . . . . . . . . . . . . . . . . Parts Field Recycled . | . . . . . . . . . . . . . . . . . Retrieved Matter . | . . . . . . . . . . . . . . . . . Parts Self-Destructed 1 | . . . . . . . . . . . 1 . . . . . Prevented . | . . . . . . . . . . . . . . . . . Kills | -11 -10 -10 -10 -9 -8 -7 -7 -6 -5 -5 -5 -4 -3 -3 -2 -2 ------- Run | Yrd Mat Min Exi Min Mat Fac DSF Fac Fac Upp Upp Fac Res DSF Res Qua Combat Hostiles Destroyed 44 | . 2 4 . . 7 . . . . . 2 16 . 4 5 4 Melee 2 | . . . . . . . . . . . 2 . . . . . Guns 6 | . 2 3 . . 1 . . . . . . . . . . . Cannons 29 | . . . . . 3 . . . . . . 15 . 4 5 2 AOE 6 | . . . . . 3 . . . . . . 1 . . . 2 Classes Destroyed 12 | . 1 3 . . 1 . . . . . 1 4 . . . 2 Builder 3 | . . . . . . . . . . . . . . . . 3 Tunneler 1 | . . 1 . . . . . . . . . . . . . . Operator 1 | . . . . . . . . . . . . 1 . . . . Watcher 2 | . . . . . . . . . . . . 1 . . . 1 Swarmer 17 | . 2 1 . . . . . . . . . 5 . 2 5 2 Grunt 13 | . . 2 . . 4 . . . . . . 5 . 2 . . Brawler 1 | . . . . . . . . . . . . 1 . . . . Duelist 1 | . . . . . . . . . . . . 1 . . . . Sentry 6 | . . . . . 3 . . . . . 1 2 . . . . Hunter 2 | . . . . . . . . . . . . . . . . 2 Programmer 3 | . . . . . . . . . . . 1 2 . . . . Assembled 1 | . . 1 . . . . . . . . . . . . . . Best Kill Streak 5 | . 2 3 . . 4 . . . . . 1 4 . 4 5 5 Combat Bots Only 5 | . 2 2 . . 4 . . . . . 1 4 . 4 5 2 Max Kills in Single Turn 2 | . 1 2 . . 2 . . . . . 1 1 . 1 1 2 Gunslinging . | . . . . . . . . . . . . . . . . . Exploded 2 | . . . . . 2 . . . . . . 1 . . . 1 Melee 1 | . . . . . . . . . . . 1 . . . . . Uniques/NPCs Destroyed . | . . . . . . . . . . . . . . . . . Combat | -11 -10 -10 -10 -9 -8 -7 -7 -6 -5 -5 -5 -4 -3 -3 -2 -2 -------- Run | Yrd Mat Min Exi Min Mat Fac DSF Fac Fac Upp Upp Fac Res DSF Res Qua Hostile Shots Fired 718 | . 30 24 . . 38 . 52 52 32 8 21 49 . 4 17 391 Missed 306 | . 10 11 . . 14 . 24 26 22 6 10 23 . 1 10 149 Damage Taken 7895 | . 156 195 . . 363 . 546 378 142 33 256 593 . 76 116 5041 Core 1709 | . 29 42 . . 57 . 146 92 76 . . 89 . . 17 1161 Absorbed by Shields 227 | . . . . . . . . . . . . . . 4 36 187 Regen/Repaired (Parts) 54 | . . . . . . . . . . . . . . . . 54 Core Remaining (%) 89 | 100 . . . 71 89 . 79 89 . . 92 92 . 100 . . Volleys Fired 63 | . 8 17 . . 19 . 1 . . . 4 . . . . 14 Largest 2 | . 1 2 . . 2 . 2 . . . 2 . . . . 2 Hottest 170 | . 50 90 . . 105 . 99 . . . 170 . . . . 130 Shots Fired 194 | . 8 34 1 . 36 . 3 . . . 8 56 . 12 11 25 Gun 74 | . 8 34 1 . 16 . 1 . . . 4 . . . . 10 Cannon 103 | . . . . . 13 . 2 . . . . 56 . 12 11 9 Launcher 13 | . . . . . 7 . . . . . . . . . . 6 Special 4 | . . . . . . . . . . . 4 . . . . . Kinetic 98 | . . . . . 9 . 2 . . . . 56 . 12 11 8 Thermal 59 | . 8 17 . . 19 . 1 . . . 4 . . . . 10 Explosive 13 | . . . . . 7 . . . . . . . . . . 6 Electromagnetic 24 | . . 17 1 . 1 . . . . . 4 . . . . 1 Robot Hit Streak 20 | . 2 8 . . 12 . 7 . . . 10 9 . 9 20 5 Robot Miss Streak 4 | . 3 3 . . 2 . 2 . . . 1 4 . 1 . 4 Penetration Max . | . . . . . . . . . . . . . . . . . Secondary Targets . | . . . . . . . . . . . . . . . . . Autonomous 88 | . . . . . . . . . . . . 56 . 12 11 9 Shots Hit Robots 141 | . 3 22 . . 25 . 1 . . 4 13 36 . 11 11 15 Core Hits 75 | . 2 8 . . 15 . . . . . 9 16 . 3 5 17 Critical Kills . | . . . . . . . . . . . . . . . . . Critical Parts Destroyed . | . . . . . . . . . . . . . . . . . Critical Strikes 4 | . . 1 . . . . . . . . . . . 2 1 . Burn 1 | . . 1 . . . . . . . . . . . . . . Blast 3 | . . . . . . . . . . . . . . 2 1 . Melee Attacks 20 | . . . . . . . . . . 4 7 . . . . 9 Impact 4 | . . . . . . . . . . . 4 . . . . . Slashing 12 | . . . . . . . . . . . 3 . . . . 9 Piercing . | . . . . . . . . . . . . . . . . . Sneak Attacks 2 | . . . . . . . . . . . 2 . . . . . Combat Hostiles 2 | . . . . . . . . . . . 2 . . . . . Follow-up Attacks . | . . . . . . . . . . . . . . . . . Damage Inflicted 7492 | . 50 290 . . 832 . 16 . . . 430 2803 . 973 681 1417 Guns 798 | . 50 290 . . 202 . 16 . . . 56 . . . . 184 Cannons 5122 | . . . . . 250 . . . . . . 2789 . 973 681 429 Explosions 1056 | . . . . . 380 . . . . . . . . . . 676 Melee 433 | . . . . . . . . . . . 323 . . . . 110 Ramming 32 | . . . . . . . . . . . . 14 . . . 18 Kinetic 4994 | . . . . . 122 . . . . . . 2789 . 973 681 429 Thermal 792 | . 50 161 . . 330 . 16 . . . 51 . . . . 184 Explosive 1056 | . . . . . 380 . . . . . . . . . . 676 Electromagnetic 185 | . . 129 . . . . . . . . 56 . . . . . Impact 124 | . . . . . . . . . . . 124 . . . . . Slashing 309 | . . . . . . . . . . . 199 . . . . 110 Piercing . | . . . . . . . . . . . . . . . . . Highest Corruption 7 | . 2 2 2 2 . 1 1 . . . . 2 2 2 . 7 Average Corruption 2 | . 2 2 2 2 . 1 1 . . . . 1 2 2 . 4 Corruption Purged . | . . . . . . . . . . . . . . . . . Corruption Blocked . | . . . . . . . . . . . . . . . . . Effects 30 | . 2 5 8 1 . 1 1 . . . . 1 . 1 . 10 Message Errors 5 | . . . 4 . . . . . . . . . . . . 1 Matter Fused 8 | . . 3 2 . . . . . . . . . . . . 3 Heat Flow Errors 3 | . . . 1 . . . . . . . . . . . . 2 Energy Discharges 3 | . . 1 . . . 1 . . . . . . . 1 . . Parts Rejected 3 | . 2 . . . . . . . . . . . . . . 1 Parts Fused 1 | . . . . . . . . . . . . 1 . . . . Data Loss (minor) 1 | . . . . . . . . . . . . . . . . 1 Data Loss (major) 2 | . . 1 . 1 . . . . . . . . . . . . Misfires 3 | . . . 1 . . . 1 . . . . . . . . 1 Weapon Failures 1 | . . . . . . . . . . . . . . . . 1 Overload Shots . | . . . . . . . . . . . . . . . . . Overflow Damage 842 | . . . . . 2 . . . . . 4 397 . 232 114 93 Projectiles 743 | . . . . . . . . . . . . 397 . 232 114 . Explosions 72 | . . . . . 2 . . . . . . . . . . 70 Melee 27 | . . . . . . . . . . . 4 . . . . 23 Knockbacks 15 | . . . . . . . . . . . 1 6 . 5 2 1 Impact 1 | . . . . . . . . . . . 1 . . . . . Kinetic 13 | . . . . . . . . . . . . 6 . 5 1 1 Secondary 1 | . . . . . . . . . . . . . . . 1 . Self-Inflicted Damage 101 | . . . . . . . . . . . . 6 . . . 95 Shots 2 | . . . . . . . . . . . . . . . . 2 Rammed 5 | . . . . . . . . . . . . 2 . . . 3 Targets Rammed 5 | . . . . . . . . . . . . 2 . . . 3 Kicked . | . . . . . . . . . . . . . . . . . Crushed . | . . . . . . . . . . . . . . . . . Highest Temperature 321 | . 60 30 158 . 96 . . 5 . 252 179 3 . . 189 321 Average Temperature 66 | . 34 12 82 . 28 . . 3 . 138 92 2 . . 93 104 Received Heat Transfer 775 | . . 123 . . 162 . . 126 . 12 54 57 . 9 7 225 Siege Activations . | . . . . . . . . . . . . . . . . . Robots Corrupted . | . . . . . . . . . . . . . . . . . Combat Hostiles . | . . . . . . . . . . . . . . . . . Parts Fried . | . . . . . . . . . . . . . . . . . Impact Corruptions 2 | . . . . . . . . . . . 1 . . . . 1 Robots Melted 1 | . . 1 . . . . . . . . . . . . . . Combat Hostiles 1 | . . 1 . . . . . . . . . . . . . . Parts Melted 2 | . 1 1 . . . . . . . . . . . . . . Heat Transferred 1800 | . 148 555 . . 555 . 37 . . . 320 . . . . 185 Parts Sabotaged . | . . . . . . . . . . . . . . . . . Parts Stolen . | . . . . . . . . . . . . . . . . . Parts Stripped . | . . . . . . . . . . . . . . . . . Power Chain Reactions . | . . . . . . . . . . . . . . . . . Alert | -11 -10 -10 -10 -9 -8 -7 -7 -6 -5 -5 -5 -4 -3 -3 -2 -2 ------- Run | Yrd Mat Min Exi Min Mat Fac DSF Fac Fac Upp Upp Fac Res DSF Res Qua Peak Influence 537 | . 61 171 . . 304 137 95 271 172 . . 374 195 247 138 537 Initial 195 | . . 23 . . . 137 95 44 132 . . 84 195 150 138 73 Average 176 | . 26 71 . . 155 137 90 129 144 . . 252 195 200 83 336 Maximum Alert Level 2 | . . . . . 1 . . 1 . . . 1 . 1 . 2 Low Security (%) 62 | 100 100 100 . 100 63 100 100 70 100 . . 27 100 50 100 8 Level 1 32 | . . . . . 36 . . 29 . . . 72 . 50 . 64 Level 2 4 | . . . . . . . . . . . . . . . . 26 Level 3 . | . . . . . . . . . . . . . . . . . Level 4 . | . . . . . . . . . . . . . . . . . Level 5 . | . . . . . . . . . . . . . . . . . High Security . | . . . . . . . . . . . . . . . . . Max Security . | . . . . . . . . . . . . . . . . . Sterilizations 1 | . . . . . . . . . . . . . . 1 . . Squads Dispatched 10 | . . . . . . . 2 1 . . . . . . . 7 Investigation . | . . . . . . . . . . . . . . . . . Extermination 1 | . . . . . . . . . . . . . . . . 1 Reinforcement 9 | . . . . . . . 2 1 . . . . . . . 6 Assault . | . . . . . . . . . . . . . . . . . Garrison . | . . . . . . . . . . . . . . . . . Intercept . | . . . . . . . . . . . . . . . . . Searches Triggered 1 | . . . . . . . . . . . . . . . . 1 Construction Impeded 1 | . . . . . . . . . . . . . . . . 1 Haulers Reinforced . | . . . . . . . . . . . . . . . . . Active Scanning Responses . | . . . . . . . . . . . . . . . . . Cargo Convoy Interrupts . | . . . . . . . . . . . . . . . . . Stealth | -11 -10 -10 -10 -9 -8 -7 -7 -6 -5 -5 -5 -4 -3 -3 -2 -2 --------- Run | Yrd Mat Min Exi Min Mat Fac DSF Fac Fac Upp Upp Fac Res DSF Res Qua Distress Signals 5 | . . . . . . . . 1 1 . . 1 . . 1 1 Communications Jammed 1 | . . . . . . . . . . . . . . . . 1 Distress Signals 1 | . . . . . . . . . . . . . . . . 1 Times Spotted 151 | . 8 11 . . 12 . 5 20 6 1 6 16 . 12 6 48 Peak Tracking Total 11 | . 5 10 . . 6 . 4 8 5 1 4 5 . 8 7 11 Tactical Retreats 26 | . . . . . 2 . 1 9 . 1 1 2 . 1 . 9 Traps | -11 -10 -10 -10 -9 -8 -7 -7 -6 -5 -5 -5 -4 -3 -3 -2 -2 ------- Run | Yrd Mat Min Exi Min Mat Fac DSF Fac Fac Upp Upp Fac Res DSF Res Qua Traps Triggered 10 | . 1 . . . . 1 . 1 . . . 6 . 1 . . Indirectly . | . . . . . . . . . . . . . . . . . Trap Hack Attempts . | . . . . . . . . . . . . . . . . . Triggered . | . . . . . . . . . . . . . . . . . Disarmed . | . . . . . . . . . . . . . . . . . Reprogrammed . | . . . . . . . . . . . . . . . . . Reused . | . . . . . . . . . . . . . . . . . Traps Extracted . | . . . . . . . . . . . . . . . . . Installed . | . . . . . . . . . . . . . . . . . Triggered . | . . . . . . . . . . . . . . . . . Machines | -11 -10 -10 -10 -9 -8 -7 -7 -6 -5 -5 -5 -4 -3 -3 -2 -2 ---------- Run | Yrd Mat Min Exi Min Mat Fac DSF Fac Fac Upp Upp Fac Res DSF Res Qua Machines Disabled 14 | . . . . . 2 . . . . . . 3 . . 1 8 Max in Single Turn 1 | . . . . . 1 . . . . . . 1 . . 1 1 Machines Repaired . | . . . . . . . . . . . . . . . . . Machines Dismantled . | . . . . . . . . . . . . . . . . . Machines Sabotaged . | . . . . . . . . . . . . . . . . . Overloaded Fab Kills . | . . . . . . . . . . . . . . . . . Hacking | -11 -10 -10 -10 -9 -8 -7 -7 -6 -5 -5 -5 -4 -3 -3 -2 -2 --------- Run | Yrd Mat Min Exi Min Mat Fac DSF Fac Fac Upp Upp Fac Res DSF Res Qua Machines Accessed 32 | . 1 . 5 . 1 1 . 7 2 . 4 3 2 . 1 5 Terminals 17 | . 1 . . . 1 1 . 3 1 . 1 1 2 . 1 5 Fabricators 4 | . . . . . . . . 2 1 . . 1 . . . . Repair Stations 1 | . . . . . . . . 1 . . . . . . . . Recycling Units 1 | . . . . . . . . 1 . . . . . . . . Scanalyzers . | . . . . . . . . . . . . . . . . . Garrison Access 1 | . . . . . . . . . . . . 1 . . . . Total Hacks 88 | . 2 . 43 . 1 1 . 12 7 . 6 5 2 . 3 6 Successful 68 | . 1 . 43 . 1 1 . 6 2 . 6 . 1 . 2 5 Failed 20 | . 1 . . . . . . 6 5 . . 5 1 . 1 1 Catastrophic 7 | . . . . . . . . 2 1 . . 2 1 . . 1 Database Lockouts . | . . . . . . . . . . . . . . . . . Manual 16 | . 2 . 1 . . . . 5 5 . . 2 . . . 1 Terminals 31 | . 2 . . . 1 1 . 7 6 . 1 2 2 . 3 6 Fabricators 6 | . . . . . . . . 3 1 . . 2 . . . . Repair Stations 1 | . . . . . . . . 1 . . . . . . . . Recycling Units 1 | . . . . . . . . 1 . . . . . . . . Scanalyzers . | . . . . . . . . . . . . . . . . . Garrison Access 1 | . . . . . . . . . . . . 1 . . . . Terminal Hacks 63 | . . . 43 . 1 1 . 3 1 . 6 . 1 . 2 5 Record 51 | . . . 42 . . . . . . . 4 . . . 1 4 Open Door 2 | . . . . . . . . . . . 2 . . . . . Open DSF 2 | . . . . . . 1 . . . . . . 1 . . . Branch Access Points 1 | . . . . . . . . . . . . . . . . 1 Alert Level 1 | . . . . . . . . . 1 . . . . . . . Unreport Threat 2 | . . . . . . . . 1 . . . . . . 1 . Locate Traps 1 | . . . . . . . . 1 . . . . . . . . Dispatch Records 1 | . . . . . . . . 1 . . . . . . . . Zone Layout 1 | . . . . . 1 . . . . . . . . . . . Derelict Proto ID Bank 1 | . . . 1 . . . . . . . . . . . . . Fabricator Hacks . | . . . . . . . . . . . . . . . . . Repair Station Hacks 1 | . . . . . . . . 1 . . . . . . . . Refit 1 | . . . . . . . . 1 . . . . . . . . Recycling Unit Hacks 1 | . . . . . . . . 1 . . . . . . . . Report Inventory 1 | . . . . . . . . 1 . . . . . . . . Scanalyzer . | . . . . . . . . . . . . . . . . . Garrison Access Hacks . | . . . . . . . . . . . . . . . . . Unauthorized Hacks 3 | . 1 . . . . . . 1 1 . . . . . . . Terminals 3 | . 1 . . . . . . 1 1 . . . . . . . Assimilate 3 | . 1 . . . . . . 1 1 . . . . . . . Fabricators . | . . . . . . . . . . . . . . . . . Repair Stations . | . . . . . . . . . . . . . . . . . Recycling Units . | . . . . . . . . . . . . . . . . . Scanalyzers . | . . . . . . . . . . . . . . . . . Garrison Access . | . . . . . . . . . . . . . . . . . Data Cores Recovered 1 | . . . . . . . . . . . . 1 . . . . Used . | . . . . . . . . . . . . . . . . . Hacking Detections 12 | . 1 . . . . . . 3 2 . . 3 1 . 1 1 Full Trace Events . | . . . . . . . . . . . . . . . . . Feedback Events . | . . . . . . . . . . . . . . . . . Feedback Blocked . | . . . . . . . . . . . . . . . . . Robot Schematics Acquired 2 | . . . . . . . . . . . . . . . . 2 Robots Built . | . . . . . . . . . . . . . . . . . Authchips . | . . . . . . . . . . . . . . . . . Time . | . . . . . . . . . . . . . . . . . Total Robot Build Rating . | . . . . . . . . . . . . . . . . . Part Schematics Acquired 4 | . . . . . . . . . . . . . . . . 4 Parts Built . | . . . . . . . . . . . . . . . . . Authchips . | . . . . . . . . . . . . . . . . . Time . | . . . . . . . . . . . . . . . . . Total Part Build Rating . | . . . . . . . . . . . . . . . . . Parts Repaired . | . . . . . . . . . . . . . . . . . Time . | . . . . . . . . . . . . . . . . . Parts Recycled . | . . . . . . . . . . . . . . . . . Recycled Matter . | . . . . . . . . . . . . . . . . . Retrieved Matter . | . . . . . . . . . . . . . . . . . Retrieved Components . | . . . . . . . . . . . . . . . . . Parts Scanalyzed . | . . . . . . . . . . . . . . . . . Part Schematics Acquired . | . . . . . . . . . . . . . . . . . Parts Damaged . | . . . . . . . . . . . . . . . . . Bothacking | -11 -10 -10 -10 -9 -8 -7 -7 -6 -5 -5 -5 -4 -3 -3 -2 -2 ------------ Run | Yrd Mat Min Exi Min Mat Fac DSF Fac Fac Upp Upp Fac Res DSF Res Qua Used RIF Installer . | . . . . . . . . . . . . . . . . . Robots Hacked . | . . . . . . . . . . . . . . . . . Non-combat . | . . . . . . . . . . . . . . . . . Combat . | . . . . . . . . . . . . . . . . . Robot Hacks Applied . | . . . . . . . . . . . . . . . . . Relay Couplers Released . | . . . . . . . . . . . . . . . . . Fabnet Peak Effective % . | . . . . . . . . . . . . . . . . . Robots Rewired . | . . . . . . . . . . . . . . . . . Allies Hacked . | . . . . . . . . . . . . . . . . . Hacks Repelled . | . . . . . . . . . . . . . . . . . Allies | -11 -10 -10 -10 -9 -8 -7 -7 -6 -5 -5 -5 -4 -3 -3 -2 -2 -------- Run | Yrd Mat Min Exi Min Mat Fac DSF Fac Fac Upp Upp Fac Res DSF Res Qua Total Allies 6 | . 1 3 . . . . . 1 1 . . . . . . . Largest Group 3 | . 1 3 3 3 3 . . 1 1 . . . . . . . Highest-Rated Group 40 | . 10 40 40 40 40 . . 26 10 . . . . . . . Highest-Rated Ally 26 | . 10 16 16 16 16 . . 26 10 . . . . . . . Total Orders . | . . . . . . . . . . . . . . . . . Ally Attacks 23 | . . 13 . . 10 . . . . . . . . . . . Total Damage 159 | . . 54 . . 105 . . . . . . . . . . . Kills 2 | . . 2 . . . . . . . . . . . . . . Allies Corrupted . | . . . . . . . . . . . . . . . . . Allies Melted . | . . . . . . . . . . . . . . . . . Turrets Deployed 1 | . . . 1 . . . . . . . . . . . . . Intel | -11 -10 -10 -10 -9 -8 -7 -7 -6 -5 -5 -5 -4 -3 -3 -2 -2 ------- Run | Yrd Mat Min Exi Min Mat Fac DSF Fac Fac Upp Upp Fac Res DSF Res Qua Robot Analysis Total . | . . . . . . . . . . . . . . . . . Derelict Logs Recovered 5 | . . 2 . . . . . . . 1 2 . . . . . Drone Launches . | . . . . . . . . . . . . . . . . . Drone Recoveries . | . . . . . . . . . . . . . . . . . Exploration | -11 -10 -10 -10 -9 -8 -7 -7 -6 -5 -5 -5 -4 -3 -3 -2 -2 ------------- Run | Yrd Mat Min Exi Min Mat Fac DSF Fac Fac Upp Upp Fac Res DSF Res Qua Turns Passed 4444 | 75 92 528 695 38 251 45 138 372 148 251 363 589 125 50 117 567 Spaces Moved 5472 | 55 62 294 519 30 141 38 100 1049 321 457 635 569 146 61 210 785 Core 18 | 18 . . . . . . . . . . . . . . . . Treads 438 | . 13 294 131 . . . . . . . . . . . . . Legs 661 | . . . 388 30 141 38 63 1 . . . . . . . . Wheels 86 | 37 49 . . . . . . . . . . . . . . . Hover 2818 | . . . . . . . 21 . 108 457 635 569 146 61 210 611 Flight 1451 | . . . . . . . 16 1048 213 . . . . . . 174 Fastest Speed 23 | 50 90 160 120 120 120 120 27 23 34 48 45 45 48 53 47 40 Average Speed 68 | 103 105 160 130 120 120 120 105 31 41 51 48 87 74 54 47 50 Slowest Speed 220 | 200 160 160 160 120 120 120 210 190 56 56 101 91 111 111 49 220 Overloaded Moves . | . . . . . . . . . . . . . . . . . Propulsion Burnouts . | . . . . . . . . . . . . . . . . . Robots Hopped 11 | . . . . . . . . 6 1 . . . . . . 4 Cave-ins Triggered . | . . . . . . . . . . . . . . . . . Teleports 3 | . . . . . . . . . . . . . . . . 3 Exploration Rate (%) 36 | 4 22 52 88 15 19 2 88 30 10 62 58 23 4 74 9 56 Regions Visited 16 Branch Regions 6 Pre-discovered Areas 4 | . . 1 1 . . . . . . . 2 . . . . . Known Exits Taken 2 | . . . . . . 1 . . . . . . 1 . . . Unknown Exits Taken 12 | 1 1 1 1 1 1 . . 1 1 1 1 1 . . 1 . Scrap Searched 7 | . . 2 . . . . . . . 1 4 . . . . . Spaces Dug 1 | . . . . . . . . . . . 1 . . . . . Terrain Destroyed 118 | . . . . . 27 . . . . . 1 16 . 1 2 71 Melee 1 | . . . . . . . . . . . 1 . . . . . Projectile 25 | . . . . . 1 . . . . . . 16 . 1 2 5 AOE 92 | . . . . . 26 . . . . . . . . . . 66 Terrain Rammed . | . . . . . . . . . . . . . . . . . Walls Destroyed . | . . . . . . . . . . . . . . . . . Machines Disabled . | . . . . . . . . . . . . . . . . . Actions | -11 -10 -10 -10 -9 -8 -7 -7 -6 -5 -5 -5 -4 -3 -3 -2 -2 --------- Run | Yrd Mat Min Exi Min Mat Fac DSF Fac Fac Upp Upp Fac Res DSF Res Qua Total 5999 | 73 80 319 539 32 186 37 131 1083 335 472 661 664 162 77 228 920 Wait 141 | 1 6 . 12 3 . . 3 1 9 7 2 52 . 2 . 43 Move 5434 | 54 61 293 518 29 140 37 99 1036 318 456 634 568 145 60 209 777 Hop 11 | . . . . . . . . 6 1 . . . . . . 4 Pick Up 70 | 12 3 1 2 . 3 . 2 6 4 1 2 12 1 . 2 19 Fast Attach 56 | . . 2 . . 8 . 9 7 . . 5 5 4 1 5 10 Attach 46 | 6 1 . 2 . . . 2 6 1 1 3 7 1 . 1 15 Detach 9 | . . . . . . . . 5 . . 1 1 . . 1 1 Swap 40 | . 1 2 2 . 6 . 3 5 . 2 2 6 5 . 3 3 Drop 79 | . . 4 3 . 10 . 12 11 2 1 1 11 6 1 7 10 Fire 63 | . 8 17 . . 19 . 1 . . . 4 . . . . 14 Melee 20 | . . . . . . . . . . 4 7 . . . . 9 Ram 5 | . . . . . . . . . . . . 2 . . . 3 Kick . | . . . . . . . . . . . . . . . . . Crush . | . . . . . . . . . . . . . . . . . Escape Stasis 25 | . . . . . . . . . . . . . . 13 . 12 Rewire . | . . . . . . . . . . . . . . . . . Trap . | . . . . . . . . . . . . . . . . . Miscellaneous . | . . . . . . . . . . . . . . . . . Route ------- -11/Scrapyard -10/Materials -10/Mines (discovered 2 exits: [*Mat] / *Exi) -10/Exiles -9/Mines -8/Materials -7/Factory -7/DSF -6/Factory -5/Factory -5/Upper Caves -5/Upper Caves -4/Factory -3/Research -3/DSF -2/Research -2/Quarantine History --------- Turn | Location | Event 7 | -11/Scrapyard | Discovered new exit (range 15) 76 | -11/Scrapyard | Entered Materials 118 | -10/Materials | Discovered new exit (range 16) 168 | -10/Materials | Entered Mines 169 | -10/Mines | Assembled infested the area 172 | -10/Mines | Learned Materials trap positions 181 | -10/Mines | Met a Derelict bent on vengeance 308 | -10/Mines | Build established: Mutant 386 | -10/Mines | Learned location of Storage (-8) 430 | -10/Mines | Assisted by bots powering up and referring to "LRC-V3" 664 | -10/Mines | Discovered new exit (range 12) 688 | -10/Mines | Deemed a non-threat by the Exiles lab entrance 689 | -10/Mines | Discovered new exit (range 5) 696 | -10/Mines | Entered Exiles 696 | -10/Exiles | Accompanied by 3 allies 733 | -10/Exiles | Met 8R-AWN 760 | -10/Exiles | Met EX-HEX 828 | -10/Exiles | Met EX-BIN 845 | -10/Exiles | Aligned with FarCom system 847 | -10/Exiles | Given EX-Vault access code 900 | -10/Exiles | Opened EX-Vault 913 | -10/Exiles | Found AWS/Autocannon 984 | -10/Exiles | Warned to stay clear of 0b10 Research branches 1011 | -10/Exiles | Found Cloak of Protection 1019 | -10/Exiles | DAS Turret deployed 1074 | -10/Exiles | Met EX-DEC 1080 | -10/Exiles | Learned location of Zion (-6) 1132 | -10/Exiles | Visited The Gauntlet 1291 | -10/Exiles | Discovered new exit (range 14) 1391 | -10/Exiles | Stole two prototypes: Cloak of Protection, AWS/Autocannon 1391 | -10/Exiles | Entered Mines 1391 | -9/Mines | Accompanied by 3 allies 1392 | -9/Mines | Met a Derelict testing a Signal Generator 1405 | -9/Mines | Discovered new exit (range 15) 1421 | -9/Mines | Received a Rocket Launcher from a helpful Derelict 1429 | -9/Mines | Entered Materials 1429 | -8/Materials | Accompanied by 3 allies 1429 | -8/Materials | Evolved 4 slots: Power x1, Propulsion x2, Utility x1 1430 | -8/Materials | Loaded intel: 13 trap records 1516 | -8/Materials | Lost 3 allies 1642 | -8/Materials | Discovered new exit (range 10) 1680 | -8/Materials | Entered Factory 1680 | -7/Factory | Evolved 2 slots: Propulsion x1, Weapon x1 1682 | -7/Factory | FarCom data flow suspended 1725 | -7/Factory | Identified exit to DSF 1725 | -7/Factory | Entered DSF 1746 | -7/DSF | Additional patrols routed to DSF 1834 | -7/DSF | Discovered new exit (range 13) 1863 | -7/DSF | Entered Factory 1863 | -6/Factory | Evolved 2 slots: Propulsion x1, Utility x1 1879 | -6/Factory | Lost 4 parts (2p1n1w) 1925 | -6/Factory | Spotted B-75 Beast 2223 | -6/Factory | Discovered new exit (range 15) 2235 | -6/Factory | Entered another Factory area 2235 | -5/Factory | Evolved 2 slots: Utility x1, Weapon x1 2372 | -5/Factory | Discovered new exit (range 15) 2383 | -5/Factory | Entered Upper Caves 2416 | -5/Upper Caves | Spotted B-75 Beast 2583 | -5/Upper Caves | Discovered new exit (range 16) 2590 | -5/Upper Caves | Learned Factory emergency access door positions 2634 | -5/Upper Caves | Entered another Upper Caves area 2645 | -5/Upper Caves | Discovered new exit (range 11) 2665 | -5/Upper Caves | Learned location of 1 exit from Proximity Caves 2798 | -5/Upper Caves | Learned Factory stockpile data 2849 | -5/Upper Caves | Learned location of Armory (-4) 2849 | -5/Upper Caves | Learned Armory security intel 2865 | -5/Upper Caves | Attracted the attention of an 0b10 checkpoint 2965 | -5/Upper Caves | Build established: Derelict-Mutant 2997 | -5/Upper Caves | Entered Factory 2997 | -4/Factory | Evolved 2 slots: Propulsion x1, Utility x1 3313 | -4/Factory | Build established: Gunner 3486 | -4/Factory | Spotted B-86 Titan 3577 | -4/Factory | Discovered new exit (range 5) 3586 | -4/Factory | Entered Research 3586 | -3/Research | Evolved 2 slots: Propulsion x1, Utility x1 3711 | -3/Research | Identified exit to DSF 3711 | -3/Research | Entered DSF 3711 | -3/DSF | Encountered a pitched battle between 0b10 and Warlord forces 3749 | -3/DSF | Discovered new exit (range 16) 3751 | -3/DSF | Sterilization system engaged 3761 | -3/DSF | Entered Research 3761 | -2/Research | Evolved 2 slots: Propulsion x1, Utility x1 3777 | -2/Research | Lost 11 allies 3850 | -2/Research | Discovered new exit (range 8) 3868 | -2/Research | Spotted B-90 Cyclops 3878 | -2/Research | Entered Quarantine 3891 | -2/Quarantine | Build established: Tank 3911 | -2/Quarantine | Found Alien Artifact 3912 | -2/Quarantine | Identified Transdimensional Reconstructor 3912 | -2/Quarantine | Warped through subspace 3918 | -2/Quarantine | Scanned by Researcher 3921 | -2/Quarantine | AWS/Autocannon suddenly broke down 3935 | -2/Quarantine | Found Sigix Corpse 3981 | -2/Quarantine | Found Transdimensional Reconstructor 3983 | -2/Quarantine | Found Alien Artifact 3984 | -2/Quarantine | Identified Hpw. Transdimensional Reconstructor 3984 | -2/Quarantine | Warped through subspace 4001 | -2/Quarantine | Found Alien Artifact 4002 | -2/Quarantine | Identified Subatomic Replicator 4064 | -2/Quarantine | Found Alien Reactor 4064 | -2/Quarantine | Identified Matter Drive 4097 | -2/Quarantine | Found Prototype Device 4097 | -2/Quarantine | Identified Exp. EM Disruption Field 4118 | -2/Quarantine | Warped through subspace 4193 | -2/Quarantine | Found Alien Energy Cannon 4199 | -2/Quarantine | Lost 8 parts (2p2n3u1w) 4207 | -2/Quarantine | Identified Core Cannon 4228 | -2/Quarantine | Build established: Mutant 4241 | -2/Quarantine | Core integrity fell below 50% 4243 | -2/Quarantine | Cryocooling Duct disabled 4251 | -2/Quarantine | Met incapacitated Sigix Warrior 4251 | -2/Quarantine | Lockdown squad dispatched 4252 | -2/Quarantine | Acquired the access code to the Sigix quarantine chamber 4254 | -2/Quarantine | Unlocked Sigix quarantine chamber 4258 | -2/Quarantine | Ambient heat levels rising (+20) 4258 | -2/Quarantine | Non-combat units ordered to evacuate 4258 | -2/Quarantine | Found Sigix Containment Pod 4286 | -2/Quarantine | Lost 8 parts (1p2n2u3w) 4340 | -2/Quarantine | Found Alien Slashing Weapon 4340 | -2/Quarantine | Identified Sigix Broadsword 4366 | -2/Quarantine | Spotted Lightning 4411 | -2/Quarantine | Lost 4 parts (1p2u1w) 4417 | -2/Quarantine | Search patrols dispatched 4431 | -2/Quarantine | Core integrity fell below 20% 4445 | -2/Quarantine | Destroyed by H-88 Terminator with KE Penetrator Last Messages --------------- patrol. 04430_ Field Propulsion Array destroyed. 04431_ Slug penetrates Wall. 04433_ System corrupted: Heat flow error (+219). 04434_ Slug penetrates Wall. 04434_ Slug penetrates Q562-g. 04436_ Slug penetrates Wall. 04436_ Penetrated by Slug. 04436_ Imp. Gyrokinetic Inverter destroyed. 04439_ Penetrated by Slug. 04439_ Quantum Reactor destroyed. 04439_ Penetrated by Slug. 04439_ Critical hit (Destroy). 04439_ Tesla Rifle destroyed. 04439_ Penetrated by Slug. 04439_ Imp. Antigrav System destroyed. 04440_ Penetrated by Slug. 04442_ Slug penetrates Wall. 04444_ Acquired Cmb. Linear Gravjet. 04445_ Penetrated by Slug. Map ----- +----------------------------------------------------+ | ?????????????????????????????????????????????????? | | ?????????????????????????????????????????????????? | | ?????????????????????????????????????????????????? | | ?????????????????????????????????????????????????? | | ?????????????????????????????????????????????????? | | ?????????????????????????????????????????????????? | | ?????????????????????????????????????????????????? | | ?????????????????????????????????????????????????? | | ?????????????????????????????????????????????????? | | ?????????????????????????????????????????????????? | | ?????????????????????????????????????????????????? | | ?????????????????????????????????????????????????? | | ?????????????????????????????????????????????????? | | ?????????????????????????????????????????????????? | | ????????????????????# ???????????????????????????? | | ????????????????????# ???????????????????????????? | | ????????????????????# ? ###+????????????????????? | | ????????????????????+ = ?? #????????????????? | | ????????????????????# #????????????????? | | ????????????????????# """ """ +????????????????? | | ????????????????????# """ """ #????????????????? | | ????????????????????# """ """ #????????????????? | | ????????????????????# #????????????????? | | ????????????????????# !*= /!] #????????????????? | | ????????????????????# !*= /] #????????????????? | | ????????????????????+ !=@ !] #????????????????? | | ????????????????????#h # ????????? | | ????????????????????# h ; ????????? | | ????????????????????# h ##############??????????? | | ????????????????????# # #??????????? | | ????????????????????# # ""???????????? | | ????????????????????# # " " ?????????????? | | ????#???????????????# # "" "" ??????????????? | | ""? #???????????????# " "" "" ??????????????? | | """ #???????????????# # "" ""???????????????? | | """ #???????????????# # " " ??????????????? | | #???????????????# # "" "" ??????????????? | | #???????????????#Q # "" ""???????????????? | | T"" #???????????????+ # "" ""???????????????? | | """ #???????????????# # " "???????????????? | | ?????????????????# # ???????????????? | | +####???????????????# #######??#??????????????? | | ###########?????# #???????????????????????? | | # #?????# #???????????????????????? | | #! #?????# #???????????????????????? | | # #?????# #???????????????????????? | | # """"""" #?????# #???????????????????????? | | # """"""" #?????# #??##############???????? | | # """"""" #?????# #??# #???????? | | + #?????# #??# #???????? | +----------------------------------------------------+ Best States ------------- Heat Dissipation 68 Coolant Potential 100 Energy Generation 69 Energy Capacity 505 Matter Stores 300 Matter Capacity 450 Sight Range 16 Terrain Scan Density 10 ECM Strength 1 Jamming Range 16 Cloak Strength 5 Power Amplification 60 Evasion (%) 65 Recoil Reduction 2 Defensive Hacking 10 Authchip Count 1 Item Schematics ----------------- Exp. Q-thruster | -2/Quarantine | Archive Exp. Matter Compressor | -2/Quarantine | Archive Cld. Nuclear Pulse Thruster | -2/Quarantine | Archive Imp. Q-thruster | -2/Quarantine | Archive Robot Schematics ------------------ G-73 Enforcer | -2/Quarantine | Archive A-15 Conveyor | -2/Quarantine | Archive Fabricated ------------ Nothing Alien Tech Used ----------------- Transdimensional Reconstructor High-powered Transdimensional Reconstructor Subatomic Replicator Matter Drive Core Cannon Sigix Broadsword Achievements -------------- False Reunion Challenges ------------ None Game ------ Seed DecoySmartbombDesublimator Manual? 0 Play Time 01:51:50 Cumulative 119.5 hours Start 2024.08.07 @ 23:51:04 End 2024.08.08 @ 02:20:37 Sessions 1 Manual Loads 0 Difficulty Rogue Special Mode None Game No. 167 Rogue 167 Adventurer 0 Explorer 0 Win Type - Total 0 Types 0/0/0/0/0/0/0/0/0 Lore% 30 Gallery% 56 Achievement% 38 Wizard Run 0 Options --------- Layout 0 ASCII 0 Keyboard 0 Movement Mouse Keybinds 0 Fullscreen 1 Font 24/Smallcaps Map View 76x50 Zoom Use 0% Tactical HUD 1 Map Filters NONE Filters NONE Steam 1 RUN: e88b99f6-acf4-4674-8c1b-3f1984eb0de6